bitfinex/quotes_SOLUSD_20240914
["timestamp","ask_amount","ask_price","bid_price","bid_amount"]
[1726329893896,0.2575463,137.71,137.7,14.09271516]
[1726329897679,0.2575463,137.75,137.7,14.09271516]
[1726329897680,0.2575463,137.75,137.71,6.6136]
[1726329897999,0.2575463,137.75,137.74,14.09271516]
[1726329911115,0.2575463,137.75,137.71,6.6136]
[1726329911319,0.2575463,137.75,137.72,14.09271516]
[1726329912409,0.2575463,137.75,137.73,14.09271516]
[1726329919616,0.2575463,137.75,137.71,6.6136]
[1726329919617,0.2575463,137.75,137.74,14.09271516]
[1726329923921,0.2575463,137.79,137.74,14.09271516]
[1726329924122,0.2575463,137.79,137.78,14.09271516]
[1726329929315,0.2575463,137.79,137.78,30.72111516]
[1726329939545,0.2575463,137.83,137.78,30.72111516]
[1726329939737,0.2575463,137.83,137.82,14.09271516]
[1726329947648,0.3830363,137.83,137.81,14.09271516]
[1726329947854,0.3830363,137.83,137.78,16.6284]
[1726329948056,0.3830363,137.83,137.81,14.09271516]
[1726329948521,0.3830363,137.83,137.82,14.09271516]
[1726329957656,0.2575463,137.83,137.82,14.09271516]
[1726329958767,0.2575463,137.83,137.81,14.09271516]
[1726329958943,0.2575463,137.83,137.8,14.09271516]
[1726329961476,0.2575463,137.83,137.81,14.09271516]
[1726329964951,0.2575463,137.83,137.82,14.09271516]
[1726329965553,0.2575463,137.83,137.78,16.6284]
[1726329965862,0.2575463,137.83,137.8,14.09271516]
[1726329966070,0.2575463,137.83,137.78,16.6284]
[1726329966377,0.2575463,137.83,137.8,14.09271516]
[1726329968685,0.2575463,137.83,137.81,14.09271516]
[1726329974401,0.2575463,137.83,137.81,14.05834713]
[1726329977685,0.2575463,137.83,137.82,14.09271516]
[1726329989003,0.2575463,137.83,137.78,16.6284]
[1726329989212,0.2575463,137.83,137.82,14.09271516]
[1726329996119,0.2575463,137.83,137.78,16.6284]
[1726329996296,0.2575463,137.83,137.8,14.09271516]
[1726329996802,0.2575463,137.83,137.81,14.09271516]
[1726329997813,0.2575463,137.83,137.82,14.09271516]
[1726330021011,0.2575463,137.83,137.82,37.86959916]
[1726330027222,0.2575463,137.87,137.82,37.86959916]
[1726330027428,0.2575463,137.87,137.86,14.09271516]
[1726330032432,0.2575463,137.87,137.8,6.1755]
[1726330032637,0.2575463,137.87,137.84,14.09271516]
[1726330033222,0.2575463,137.87,137.85,14.09271516]
[1726330036912,0.25098,137.86,137.84,14.09271516]
[1726330037112,0.25098,137.86,137.79,15.8116]
[1726330037113,22.11098,137.86,137.79,15.8116]
[1726330037338,22.11098,137.86,137.82,14.09271516]
[1726330038336,22.11098,137.86,137.83,14.09271516]
[1726330043440,22.11098,137.86,137.82,14.09271516]
[1726330045847,15.6218363,137.87,137.83,14.09271516]
[1726330046040,15.4963463,137.87,137.84,14.09271516]
[1726330048547,15.4963463,137.87,137.83,14.09271516]
[1726330051744,15.4963463,137.87,137.84,14.09271516]
[1726330052046,15.4963463,137.87,137.79,15.8116]
[1726330052047,0.2575463,137.87,137.85,14.09271516]
[1726330052345,0.2575463,137.87,137.79,15.8116]
[1726330052346,0.2575463,137.87,137.86,14.09271516]
[1726330052929,0.2575463,137.87,137.85,14.09271516]
[1726330054835,0.2575463,137.87,137.81,6.2949]
[1726330055030,0.2575463,137.87,137.85,14.09271516]
[1726330062245,0.2575463,137.87,137.86,14.09271516]
[1726330068456,0.2575463,137.87,137.85,14.09271516]
[1726330072447,0.2575463,137.87,137.84,14.09271516]
[1726330073434,0.2575463,137.87,137.85,14.09271516]
[1726330079136,22.11098,137.86,137.79,15.8116]
[1726330079351,0.12549,137.85,137.81,14.09271516]
[1726330080352,0.12549,137.85,137.82,14.09271516]
[1726330085044,0.12549,137.85,137.77,6.1374]
[1726330085245,0.12549,137.85,137.8,14.09271516]
[1726330085763,0.12549,137.85,137.81,14.09271516]
[1726330086866,0.12549,137.85,137.78,3.92226658]
[1726330087042,0.12549,137.85,137.81,14.09271516]
[1726330103371,0.12549,137.85,137.8,14.09271516]
[1726330108275,0.25098,137.83,137.76,16.4408]
[1726330108484,0.25098,137.83,137.78,14.09271516]
[1726330108654,0.25098,137.83,137.8,14.09271516]
[1726330110456,21.86,137.84,137.82,14.09271516]
[1726330110685,0.12549,137.85,137.82,14.09271516]
[1726330110875,0.25098,137.85,137.82,14.09271516]
[1726330128480,0.25098,137.85,137.83,14.09271516]
[1726330128690,22.1175463,137.87,137.84,14.09271516]
[1726330129771,0.2575463,137.87,137.84,14.09271516]
[1726330129996,0.25098,137.86,137.84,14.09271516]
[1726330131991,0.2575463,137.87,137.84,14.09271516]
[1726330140996,0.37647,137.86,137.83,14.09271516]
[1726330143406,0.37647,137.86,137.82,14.09271516]
[1726330143999,0.37647,137.86,137.81,20.51651516]
[1726330145514,0.37647,137.86,137.82,14.09271516]
[1726330149183,0.25098,137.84,137.82,14.09271516]
[1726330149813,0.25098,137.84,137.81,14.09271516]
[1726330151593,0.12549,137.82,137.78,3.92252338]
[1726330151913,0.25098,137.82,137.78,14.09271516]
[1726330153418,0.25098,137.82,137.79,14.09271516]
[1726330159907,0.12549,137.83,137.8,14.09271516]
[1726330160115,0.12549,137.84,137.8,14.09271516]
[1726330160295,0.12549,137.83,137.8,14.09271516]
[1726330160718,0.25098,137.83,137.8,14.09271516]
[1726330161217,21.86,137.86,137.82,14.09271516]
[1726330161416,21.86,137.86,137.81,14.09271516]
[1726330162324,21.86,137.86,137.82,14.09271516]
[1726330163709,0.37647,137.85,137.82,14.09271516]
[1726330169308,0.37647,137.85,137.81,14.09271516]
[1726330178552,0.37647,137.85,137.82,14.09271516]
[1726330179627,0.25098,137.85,137.82,14.09271516]
[1726330181031,0.25098,137.85,137.78,23.776884]
[1726330181231,0.25098,137.85,137.8,14.09271516]
[1726330181538,0.25098,137.85,137.79,14.09271516]
[1726330182126,0.37647,137.84,137.79,14.09271516]
[1726330183332,0.37647,137.84,137.77,6.5379]
[1726330183527,22.23647,137.84,137.78,14.09271516]
[1726330186345,22.23647,137.84,137.8,14.09271516]
[1726330186940,22.11098,137.84,137.8,14.09271516]
[1726330187643,22.11098,137.84,137.81,14.09271516]
[1726330187836,22.11098,137.84,137.8,14.09271516]
[1726330188648,0.25098,137.84,137.8,14.09271516]
[1726330188822,21.82,137.85,137.81,14.09271516]
[1726330189023,0.25098,137.85,137.81,14.09271516]
[1726330191626,0.25098,137.85,137.82,14.09271516]
[1726330192563,0.25098,137.85,137.77,29.947584]
[1726330192849,0.25098,137.85,137.8,14.09271516]
[1726330193046,0.12549,137.84,137.79,14.09271516]
[1726330196257,0.12549,137.84,137.78,14.09271516]
[1726330197943,0.12549,137.84,137.79,14.09271516]
[1726330199562,0.12549,137.84,137.78,14.09271516]
[1726330202071,0.25098,137.83,137.78,14.09271516]
[1726330209061,0.25098,137.83,137.79,14.09271516]
[1726330210767,0.25098,137.83,137.8,14.09271516]
[1726330212668,16.2888,137.84,137.81,14.09271516]
[1726330213963,47.60361911,137.86,137.82,14.09271516]
[1726330214152,47.60361911,137.86,137.85,14.09271516]
[1726330214153,25.78361911,137.86,137.85,14.09271516]
[1726330221961,0.2575463,137.87,137.85,14.09271516]
[1726330222263,0.2575463,137.87,137.86,14.09271516]
[1726330226767,0.2575463,137.87,137.85,20.0]
[1726330226986,0.2575463,137.87,137.86,14.09271516]
[1726330229956,0.2575463,137.87,137.86,37.86959916]
[1726330233187,28.10887433,137.94,137.87,43.776884]
[1726330233394,28.10887433,137.94,137.91,14.09271516]
[1726330235162,16.4526,137.95,137.91,14.09271516]
[1726330237481,0.2575463,137.96,137.91,14.09271516]
[1726330238796,0.2575463,137.96,137.91,37.86959916]
[1726330243279,0.2575463,137.96,137.95,14.09271516]
[1726330259095,0.2575463,137.96,137.94,14.09271516]
[1726330261407,0.2575463,137.96,137.91,20.0]
[1726330261694,0.2575463,137.96,137.92,14.09271516]
[1726330262676,0.25098,137.95,137.91,14.09271516]
[1726330263694,0.2575463,137.96,137.93,14.09271516]
[1726330268587,0.2575463,137.96,137.92,14.09271516]
[1726330270910,0.25098,137.95,137.87,21.1231]
[1726330271205,0.25098,137.95,137.88,14.09271516]
[1726330271438,0.12549,137.94,137.87,6.0387]
[1726330271722,0.12549,137.94,137.86,14.09271516]
[1726330272393,0.12549,137.94,137.83,15.0844]
[1726330272394,0.25098,137.91,137.83,15.0844]
[1726330272589,0.25098,137.91,137.84,14.09271516]
[1726330272985,0.12549,137.9,137.82,6.0387]
[1726330273306,0.25098,137.91,137.85,14.09271516]
[1726330273610,15.8625,137.92,137.88,14.09271516]
[1726330273915,16.1200463,137.96,137.9,14.09271516]
[1726330275509,45.1884463,137.96,137.89,14.09271516]
[1726330275706,0.25098,137.93,137.86,23.776884]
[1726330276012,0.25098,137.93,137.87,14.09271516]
[1726330276604,0.25098,137.93,137.86,14.09271516]
[1726330276986,0.25098,137.91,137.85,14.09271516]
[1726330277407,0.25098,137.91,137.86,14.09271516]
[1726330277602,15.98799,137.92,137.88,14.09271516]
[1726330277811,15.8625,137.92,137.88,14.09271516]
[1726330279321,15.8625,137.92,137.87,14.09271516]
[1726330279907,15.8625,137.92,137.88,1.44974073]
[1726330280113,15.8625,137.92,137.87,14.09271516]
[1726330280422,15.8625,137.92,137.88,14.09271516]
[1726330280720,15.8625,137.92,137.87,14.09271516]
[1726330287625,0.25098,137.91,137.87,14.09271516]
[1726330288926,0.25098,137.91,137.86,14.09271516]
[1726330291035,0.25098,137.91,137.87,14.09271516]
[1726330293441,0.25098,137.91,137.86,14.09271516]
[1726330295222,1.26346969,137.94,137.9,14.09271516]
[1726330295421,44.105,137.98,137.91,14.09271516]
[1726330295622,54.21882823,137.97,137.91,14.09271516]
[1726330296015,54.21882823,137.97,137.89,14.09271516]
[1726330296836,0.37647,137.95,137.89,14.09271516]
[1726330301843,25.15082823,137.97,137.9,14.80378613]
[1726330302145,25.15082823,137.97,137.91,14.09271516]
[1726330303236,25.27631823,137.97,137.91,14.09271516]
[1726330305449,0.25098,137.95,137.9,14.09271516]
[1726330308532,0.25098,137.95,137.89,14.09271516]
[1726330308729,0.25098,137.95,137.9,14.09271516]
[1726330311343,0.25098,137.95,137.89,14.09271516]
[1726330311547,15.0372,137.94,137.89,14.09271516]
[1726330315950,0.25098,137.93,137.86,43.776884]
[1726330316154,0.25098,137.93,137.88,14.09271516]
[1726330320741,0.25098,137.93,137.86,14.09271516]
[1726330322557,0.25098,137.93,137.87,14.09271516]
[1726330325450,0.25098,137.93,137.86,14.09271516]
[1726330325854,0.25098,137.93,137.87,14.09271516]
[1726330326854,0.25098,137.93,137.88,14.09271516]
[1726330330452,0.25098,137.93,137.87,14.09271516]
[1726330335567,0.25098,137.93,137.86,37.86959916]
[1726330335776,0.25098,137.93,137.87,3.91977694]
[1726330336566,0.25098,137.93,137.87,18.0124921]
[1726330337259,0.25098,137.93,137.87,14.09271516]
[1726330338164,0.25098,137.93,137.87,18.01252003]
[1726330338370,0.25098,137.93,137.87,14.09271516]
[1726330342479,22.07098,137.93,137.87,14.09271516]
[1726330342972,22.07098,137.93,137.86,37.86959916]
[1726330343187,22.07098,137.93,137.87,3.91980539]
[1726330343354,22.07098,137.93,137.86,37.86959916]
[1726330343683,22.07098,137.93,137.87,3.91980539]
[1726330343972,22.07098,137.93,137.86,37.86959916]
[1726330344174,22.07098,137.93,137.87,3.91980539]
[1726330344367,22.07098,137.93,137.86,37.86959916]
[1726330344571,22.07098,137.93,137.87,3.91977747]
[1726330344872,22.07098,137.93,137.86,37.86959916]
[1726330345051,22.07098,137.93,137.87,3.91977694]
[1726330345249,22.07098,137.93,137.86,37.86959916]
[1726330345469,22.07098,137.93,137.87,3.91977694]
[1726330345682,22.07098,137.93,137.86,37.86959916]
[1726330345979,22.07098,137.93,137.87,3.91980539]
[1726330346177,22.07098,137.93,137.86,37.86959916]
[1726330346377,22.07098,137.93,137.87,3.91977694]
[1726330346585,22.07098,137.93,137.86,37.86959916]
[1726330346755,22.07098,137.93,137.87,18.0124921]
[1726330346957,22.07098,137.93,137.86,23.776884]
[1726330346958,22.07098,137.93,137.86,37.86959916]
[1726330347277,22.07098,137.93,137.87,3.91977747]
[1726330347463,22.07098,137.93,137.86,37.86959916]
[1726330347866,22.07098,137.93,137.87,3.91983332]
[1726330348279,22.07098,137.93,137.86,23.776884]
[1726330348483,22.07098,137.93,137.87,3.91983587]
[1726330348667,22.07098,137.93,137.86,37.86959916]
[1726330348861,22.07098,137.93,137.87,3.91983534]
[1726330349062,22.07098,137.93,137.86,37.86959916]
[1726330349387,22.07098,137.93,137.87,3.91983534]
[1726330349586,22.07098,137.93,137.86,37.86959916]
[1726330349883,22.07098,137.93,137.87,3.91983534]
[1726330350085,22.07098,137.93,137.86,37.86959916]
[1726330350261,22.07098,137.93,137.87,3.91983534]
[1726330350463,22.07098,137.93,137.86,37.86959916]
[1726330350676,22.07098,137.93,137.87,3.91980539]
[1726330350878,22.07098,137.93,137.86,37.86959916]
[1726330351083,22.07098,137.93,137.87,3.91983332]
[1726330351383,22.07098,137.93,137.86,37.86959916]
[1726330351581,0.25098,137.93,137.86,37.86959916]
[1726330351780,15.0372,137.94,137.88,14.09271516]
[1726330352087,15.0372,137.94,137.89,1.44795061]
[1726330352463,21.82,137.93,137.89,1.44795061]
[1726330352664,15.0372,137.94,137.89,1.44795061]
[1726330353064,15.0372,137.94,137.88,1.45021762]
[1726330363584,15.0372,137.94,137.89,23.776884]
[1726330363776,15.0372,137.94,137.9,1.45006884]
[1726330366885,15.0372,137.94,137.89,23.776884]
[1726330367191,15.0372,137.94,137.88,23.776884]
[1726330367685,0.25098,137.93,137.82,21.947]
[1726330367992,15.795,137.92,137.83,14.09271516]
[1726330368192,15.795,137.9,137.81,0.2575463]
[1726330368403,15.795,137.9,137.81,14.35026146]
[1726330368883,15.795,137.9,137.82,1.44973797]
[1726330369086,15.795,137.9,137.83,14.09271516]
[1726330369688,15.795,137.9,137.85,23.776884]
[1726330369893,15.795,137.9,137.86,1.45051605]
[1726330370392,15.795,137.9,137.82,34.09271516]
[1726330371460,15.795,137.9,137.84,14.09271516]
[1726330372084,15.795,137.9,137.85,14.09271516]
[1726330372476,15.795,137.9,137.84,14.09271516]
[1726330372878,15.795,137.9,137.85,23.776884]
[1726330377875,15.795,137.9,137.86,1.44965446]
[1726330379471,15.795,137.9,137.86,15.54236962]
[1726330382884,15.795,137.9,137.86,14.09271516]
[1726330383574,15.795,137.9,137.85,37.86959916]
[1726330396006,15.795,137.9,137.87,14.09271516]
[1726330399502,15.795,137.9,137.88,14.09271516]
[1726330400109,15.795,137.9,137.89,14.09271516]
[1726330400887,6.3171,137.93,137.89,14.09271516]
[1726330401113,6.3171,137.93,137.9,14.09271516]
[1726330403515,6.3171,137.93,137.89,14.09271516]
[1726330408911,15.8347,137.94,137.92,14.09271516]
[1726330409889,15.8347,137.94,137.86,21.45011784]
[1726330410095,15.8347,137.94,137.92,14.09271516]
[1726330418228,15.8347,137.94,137.91,14.09271516]
[1726330425932,15.8347,137.94,137.92,14.09271516]
[1726330436014,15.8347,137.94,137.93,14.09271516]
[1726330436214,16.08568,137.94,137.93,14.09271516]
[1726330437940,0.25098,137.94,137.93,14.09271516]
[1726330439822,7.79990182,137.96,137.93,14.09271516]
[1726330440022,0.25098,137.95,137.94,14.09271516]
[1726330441217,0.25098,137.95,137.93,14.09271516]
[1726330458945,0.25098,137.95,137.89,22.9576]
[1726330459151,0.25098,137.95,137.91,14.09271516]
[1726330460749,0.25098,137.95,137.89,22.9576]
[1726330460750,0.25098,137.95,137.92,14.09271516]
[1726330469556,0.25098,137.95,137.93,14.09271516]
[1726330471948,0.25098,137.95,137.92,14.09271516]
[1726330475962,0.25098,137.95,137.93,14.09271516]
[1726330483665,0.25098,137.95,137.94,14.09271516]
[1726330483973,0.2575463,137.96,137.94,14.09271516]
[1726330496591,0.2575463,137.96,137.95,14.09271516]
[1726330503414,0.5085263,138.0,137.99,14.09271516]
[1726330506827,0.2575463,138.0,137.99,14.09271516]
[1726330513094,0.2575463,138.04,137.99,14.09271516]
[1726330513300,0.2575463,138.04,137.98,16.2801]
[1726330513301,0.2575463,138.04,138.03,14.09271516]
[1726330513506,0.2575463,138.08,138.03,14.09271516]
[1726330513814,0.2575463,138.08,138.07,14.09271516]
[1726330514524,0.2575463,138.08,138.06,14.09271516]
[1726330514735,0.2575463,138.08,138.0,6.5699]
[1726330514902,21.8,138.07,138.03,14.09271516]
[1726330515225,21.8,138.07,138.02,14.09271516]
[1726330515425,0.12549,138.06,138.03,14.09271516]
[1726330516324,0.12549,138.06,138.04,14.09271516]
[1726330516626,0.25098,138.07,138.05,14.09271516]
[1726330516803,0.12549,138.07,138.05,14.09271516]
[1726330517002,28.22286018,138.08,138.05,14.09271516]
[1726330517197,28.22286018,138.08,138.06,14.09271516]
[1726330517505,28.22286018,138.08,138.07,14.09271516]
[1726330519326,28.22286018,138.08,138.06,14.09271516]
[1726330523202,0.2575463,138.08,138.06,14.09271516]
[1726330527635,0.2575463,138.08,138.02,23.1707]
[1726330528008,0.2575463,138.08,138.06,14.09271516]
[1726330531632,0.2575463,138.08,138.05,14.09271516]
[1726330531835,0.2575463,138.08,138.04,14.09271516]
[1726330533137,0.2575463,138.08,138.05,14.09271516]
[1726330533727,0.2575463,138.08,138.06,14.09271516]
[1726330538522,0.2575463,138.08,138.07,14.09271516]
[1726330540367,0.2575463,138.08,138.06,14.09271516]
[1726330541648,0.2575463,138.08,138.03,43.776884]
[1726330541649,0.2575463,138.08,138.07,14.09271516]
[1726330547630,0.2575463,138.08,138.06,14.09271516]
[1726330550751,0.2575463,138.08,138.07,14.09271516]
[1726330555979,0.2575463,138.08,138.07,37.86959916]
[1726330556673,0.2575463,138.08,138.07,59.77499916]
[1726330556852,7.5001109,138.1,138.08,23.776884]
[1726330557051,0.2575463,138.12,138.09,15.08413306]
[1726330557250,0.2575463,138.12,138.11,14.09271516]
[1726330559754,0.2575463,138.12,138.09,14.09271516]
[1726330560361,0.2575463,138.12,138.1,14.09271516]
[1726330563271,0.2575463,138.12,138.09,14.09271516]
[1726330564264,0.2575463,138.12,138.1,14.09271516]
[1726330567966,0.2575463,138.12,138.09,14.09271516]
[1726330568588,0.2575463,138.12,138.1,14.09271516]
[1726330571789,0.2575463,138.12,138.07,21.9054]
[1726330571790,7.4976463,138.12,138.07,21.9054]
[1726330572086,0.2575463,138.12,138.08,14.09271516]
[1726330572291,0.2575463,138.12,138.09,14.09271516]
[1726330573691,0.2575463,138.12,138.08,14.09271516]
[1726330574066,0.2575463,138.12,138.05,23.776884]
[1726330574368,0.2575463,138.12,138.08,14.09271516]
[1726330575190,0.2575463,138.12,138.11,14.09271516]
[1726330577583,0.2575463,138.12,138.09,14.09271516]
[1726330582293,0.2575463,138.12,138.1,14.09271516]
[1726330590589,0.2575463,138.12,138.11,14.09271516]
[1726330593603,0.2575463,138.12,138.11,37.86959916]
[1726330593969,0.2575463,138.12,138.11,14.09271516]
[1726330594496,0.2575463,138.12,138.11,37.86959916]
[1726330602799,0.2575463,138.12,138.11,14.09271516]
[1726330604804,0.2575463,138.12,138.1,14.09271516]
[1726330606204,0.2575463,138.12,138.07,15.3373]
[1726330606394,0.2575463,138.12,138.04,6.0349]
[1726330606395,0.2575463,138.12,138.08,14.09271516]
[1726330608813,0.2575463,138.12,138.1,14.09271516]
[1726330616610,0.2575463,138.12,138.09,14.09271516]
[1726330621507,0.2575463,138.12,138.1,14.09271516]
[1726330629206,0.2575463,138.12,138.08,14.09271516]
[1726330631128,0.2575463,138.12,138.04,6.0349]
[1726330631434,0.12549,138.11,138.04,20.12761516]
[1726330631620,0.12549,138.11,138.04,14.09271516]
[1726330632110,16.2412,138.1,138.04,14.09271516]
[1726330635440,45.2823,138.1,138.01,6.1253]
[1726330635740,0.12549,138.09,138.03,14.09271516]
[1726330637736,0.25098,138.09,138.03,14.09271516]
[1726330638119,0.25098,138.09,137.99,15.3519]
[1726330638433,0.25098,138.09,138.03,14.09271516]
[1726330640034,0.25098,138.09,138.01,20.0]
[1726330640212,0.25098,138.09,138.02,14.09271516]
[1726330642047,7.79050548,138.09,138.02,14.09271516]
[1726330645460,36.83210548,138.09,138.02,14.09271516]
[1726330646137,16.2412,138.06,138.02,14.09271516]
[1726330646341,0.12549,138.05,137.99,14.09271516]
[1726330646740,0.12549,138.05,138.0,14.09271516]
[1726330647942,16.2412,138.06,138.03,14.09271516]
[1726330650547,6.4395,138.08,138.03,14.09271516]
[1726330653453,23.90621548,138.09,138.04,14.09271516]
[1726330654441,23.78072548,138.09,138.06,14.09271516]
[1726330654756,6.5933,138.11,138.06,14.09271516]
[1726330656750,6.5933,138.11,138.07,14.09271516]
[1726330657939,6.5933,138.11,138.06,14.09271516]
[1726330661360,6.5933,138.11,138.07,14.09271516]
[1726330662638,23.89658455,138.12,138.07,14.09271516]
[1726330662838,23.89658455,138.12,138.08,14.09271516]
[1726330671656,52.93668455,138.12,138.07,14.09271516]
[1726330671848,0.12549,138.11,138.06,14.09271516]
[1726330674073,0.12549,138.11,138.07,14.09271516]
[1726330674970,0.12549,138.11,138.08,14.09271516]
[1726330675343,23.89658455,138.12,138.09,14.09271516]
[1726330682353,23.89658455,138.12,138.08,14.09271516]
[1726330690087,23.89658455,138.12,138.09,14.09271516]
[1726330690264,16.3397463,138.12,138.09,14.09271516]
[1726330691556,0.2575463,138.12,138.11,14.09271516]
[1726330692168,0.2575463,138.12,138.1,14.09271516]
[1726330695683,0.2575463,138.12,138.11,14.09271516]
[1726330698583,0.2575463,138.12,138.1,14.09271516]
[1726330704192,0.2575463,138.12,138.11,14.09271516]
[1726330739617,0.2575463,138.12,138.08,23.776884]
[1726330739821,0.2575463,138.12,138.11,14.09271516]
[1726330744412,0.2575463,138.12,138.1,14.09271516]
[1726330744731,0.2575463,138.12,138.11,14.09271516]
[1726330752839,22.70269899,138.14,138.11,14.09271516]
[1726330752840,22.46024529,138.14,138.11,14.09271516]
[1726330753139,22.46024529,138.14,138.12,14.09271516]
[1726330753346,22.46024529,138.14,138.11,14.09271516]
[1726330760541,29.69934529,138.14,138.07,21.9432]
[1726330760760,0.25098,138.13,138.04,6.3592]
[1726330760921,7.49098,138.13,138.06,14.09271516]
[1726330761122,7.49098,138.13,138.07,14.09271516]
[1726330761427,36.58653007,138.12,138.04,6.3592]
[1726330761634,15.1866,138.1,138.02,0.2575463]
[1726330762041,15.1866,138.1,138.04,14.09271516]
[1726330762042,0.25098,138.09,138.04,14.09271516]
[1726330762232,0.12549,138.08,138.02,0.2575463]
[1726330762559,0.12549,138.08,138.04,14.09271516]
[1726330765955,0.12549,138.08,138.03,14.09271516]
[1726330767055,7.36759,138.08,138.03,14.09271516]
[1726330767248,7.36759,138.08,138.02,14.35026146]
[1726330767450,7.49408,138.07,138.02,0.2575463]
[1726330767655,15.31209,138.06,138.02,0.2575463]
[1726330767963,21.61649,138.06,138.02,0.2575463]
[1726330768351,0.25098,138.05,138.02,0.2575463]
[1726330768552,0.12549,138.04,138.02,0.2575463]
[1726330787187,7.57916762,138.05,138.02,0.2575463]
[1726330787481,7.57916762,138.05,138.02,14.35026146]
[1726330788281,7.57916762,138.05,138.03,14.09271516]
[1726330788466,7.57916762,138.05,138.04,14.09271516]
[1726330788667,19.39731823,138.07,138.04,14.09271516]
[1726330789286,19.39731823,138.07,138.06,14.09271516]
[1726330790167,19.39731823,138.07,138.04,14.09271516]
[1726330798302,19.39731823,138.07,138.06,14.09271516]
[1726330798479,19.39731823,138.07,138.05,14.09271516]
[1726330799897,0.12549,138.06,138.02,0.2575463]
[1726330800095,0.12549,138.06,138.02,14.35026146]
[1726330800405,0.12549,138.06,138.02,0.2575463]
[1726330800406,7.2437,138.05,138.02,0.2575463]
[1726330800602,0.37647,138.04,138.02,0.2575463]
[1726330800904,0.12549,138.03,138.02,0.2575463]
[1726330801883,7.2433,138.06,138.02,0.2575463]
[1726330802090,0.12549,138.05,138.02,0.2575463]
[1726330810595,7.69866138,138.05,138.02,0.2575463]
[1726330819327,7.57317138,138.05,138.04,14.09271516]
[1726330819702,19.39731823,138.07,138.04,14.09271516]
[1726330819908,19.39731823,138.07,138.05,14.09271516]
[1726330820310,19.39731823,138.07,138.06,14.09271516]
[1726330820516,19.39731823,138.07,138.05,14.09271516]
[1726330825141,7.57434131,138.1,138.06,14.09271516]
[1726330825350,7.57434131,138.1,138.08,14.09271516]
[1726330826147,7.57434131,138.1,138.07,14.09271516]
[1726330828330,7.57434131,138.1,138.05,6.5976]
[1726330828331,7.57434131,138.1,138.08,14.09271516]
[1726330828639,8.50205902,138.13,138.07,14.09271516]
[1726330828817,7.57279591,138.11,138.07,14.09271516]
[1726330829749,0.12549,138.1,138.07,14.09271516]
[1726330830444,7.57279591,138.11,138.08,14.09271516]
[1726330830625,0.12549,138.12,138.09,14.09271516]
[1726330831014,7.94893442,138.13,138.09,14.09271516]
[1726330840254,7.94893442,138.13,138.1,14.09271516]
[1726330840456,7.82344442,138.13,138.1,14.09271516]
[1726330841361,7.69795442,138.13,138.1,14.09271516]
[1726330857782,7.69795442,138.13,138.11,14.09271516]
[1726330858190,7.57246442,138.13,138.12,14.09271516]
[1726330858701,7.57246442,138.13,138.11,14.09271516]
[1726330860396,7.57246442,138.13,138.1,14.09271516]
[1726330862805,0.12549,138.12,138.1,14.09271516]
[1726330862983,7.61687,138.12,138.06,6.6104]
[1726330863186,0.12549,138.1,138.05,14.09271516]
[1726330863514,0.25098,138.1,138.07,14.09271516]
[1726330873715,0.25098,138.1,138.06,14.09271516]
[1726330879131,0.25098,138.1,138.07,14.09271516]
[1726330881018,7.57402567,138.11,138.07,14.09271516]
[1726330891243,0.25098,138.1,138.07,14.09271516]
[1726330891423,0.12549,138.09,138.03,22.6457]
[1726330891625,0.12549,138.09,138.05,14.09271516]
[1726330891841,0.12549,138.09,138.02,0.2575463]
[1726330892020,0.12549,138.09,138.04,14.09271516]
[1726330892546,23.776884,138.07,138.02,0.2575463]
[1726330892728,0.37647,138.06,138.02,0.2575463]
[1726330898738,7.61997,138.06,138.02,0.2575463]
[1726330899264,0.25098,138.04,138.02,0.2575463]
[1726330899563,31.020684,138.05,138.02,0.2575463]
[1726330899564,0.37647,138.03,138.02,0.2575463]
[1726330901764,8.50533219,138.06,138.02,0.2575463]
[1726330902674,23.03203219,138.06,138.02,0.2575463]
[1726330902854,7.2446,138.04,138.02,0.2575463]
[1726330903376,0.37647,138.03,138.02,0.2575463]
[1726330905976,22.14647,138.03,138.02,0.2575463]
[1726330906179,53.168154,138.03,138.02,0.2575463]
[1726330907263,69.682054,138.03,138.02,0.2575463]
[1726330911589,96.316654,138.03,138.02,0.2575463]
[1726330913587,103.87531011,138.03,138.02,0.2575463]
[1726330915884,133.87531011,138.03,138.02,0.2575463]
[1726330918789,136.34790097,138.03,138.02,0.2575463]
[1726330918997,119.71330097,138.03,138.02,0.2575463]
[1726330920882,120.97581273,138.03,138.02,0.2575463]
[1726330926701,150.97581273,138.03,138.02,0.2575463]
[1726330928109,150.6198568,138.03,138.02,0.2575463]